[Event "German Bundesliga 2023-24"]
[Site "Germany"]
[Date "2024.03.16"]
[Round "12"]
[White "Movsesian, Sergei"]
[Black "Grigorian, Spartak"]
[Result "1-0"]
[ECO "B66"]
[WhiteElo "2605"]
[BlackElo "2439"]
[Annotator "RC"]
[PlyCount "121"]
[EventDate "2023.10.20"]
[EventType "team-tourn"]
[EventCountry "GER"]
[SourceTitle "playchess.com"]
[Source "ChessBase"]
[SourceQuality "1"]
[TimeControl "40/6000+30:3000+30"]

1. e4 {[%emt 0:01:00]} c5 {[%emt 0:01:00]} 2. Nf3 {[%emt 0:00:00]} d6 {[%emt 0:00:30]} 3. d4 {[%emt 0:00:00]} cxd4 {[%emt 0:00:00]} 4. Nxd4 {[%emt 0:00:00]} Nf6 {[%emt 0:00:00]} 5. Nc3 {[%emt 0:00:00]} Nc6 {[%emt 0:00:30]} 6. Bg5 {[%emt 0:00:30]} e6 {[%emt 0:00:00]} 7. Qd2 {[%emt 0:00:00]} a6 {[%emt 0:00:00]} 8. O-O-O {[%emt 0:00:00]} Bd7 {[%emt 0:00:00]} 9. Kb1 {[%emt 0:00:30]} h6 {[%emt 0:01:00]} 10. Be3 {[%emt 0:02:30]} b5 {[%emt 0:01:30]} 11. Nxc6 {[%emt 0:01:30]} Bxc6 {[%emt 0:00:30]} 12. f3 {[%emt 0:00:00]} Qc7 {[%emt 0:05:30]} 13. Bd3 {[%emt 0:09:00]} Be7 {[%emt 0:10:30]} 14. Ne2 {[%emt 0:08:30]} d5 {[%emt 0:05:30]} 15. e5 {[%emt 0:02:30]} Ne4 {[%emt 0:00:30]} 16. Qe1 {[%emt 0:02:30]} Nc5 {[%emt 0:15:30]} 17. Qg3 {[%emt 0:03:30]} g6 {[%emt 0:07:30]} 18. h4 {[%emt 0:02:30]} O-O-O {[%emt 0:08:30]} 19. Bd4 {[%emt 0:15:30]} Kb7 {[%emt 0:03:30]} 20. Qf4 {[%emt 0:02:30]} Rdf8 {[%emt 0:01:30]} 21. g3 {[%emt 0:09:30]} Rc8 {[%emt 0:11:30]} 22. Rc1 {[%emt 0:10:30]} b4 {[%emt 0:07:30]} 23. Bf2 {[%emt 0:04:30]} Ka8 {[%emt 0:11:04]} 24. Nd4 {[%emt 0:03:30]} Be8 {[%emt 0:03:24]} 25. Nb3 {[%emt 0:09:30]} g5 {[%emt 0:01:10]} 26. Qe3 {[%emt 0:01:30]} Qb7 {[%emt 0:06:10]} 27. hxg5 {[%emt 0:10:01]} Bxg5 {[%emt 0:00:03]} 28. f4 {[%emt 0:00:38]} Be7 {[%emt 0:00:02]} 29. Qe2 {[%emt 0:02:07]} Bb5 {[%emt 0:03:11]} 30. Bxc5 {[%emt 0:03:57]} Bxc5 {[%emt 0:00:10]} 31. g4 {[%emt 0:01:11]} Bxd3 {[%emt 0:02:45]} 32. cxd3 {[%emt 0:00:17]} Bb6 {[%emt 0:00:43]} 33. d4 {[%emt 0:03:22]} Rxc1+ {[%emt 0:03:29]} 34. Rxc1 {[%emt 0:00:07]} Ka7 {[%emt 0:01:27]} 35. Qd2 {[%emt 0:01:37]} a5 {[%emt 0:00:40]} 36. Nc5 {[%emt 0:00:54]} Bxc5 {[%emt 0:00:36]} 37. Rxc5 {[%emt 0:00:03]} Qa6 {[%emt 0:00:22]} 38. a4 {[%emt 0:02:39]} Rc8 {[%emt 0:00:53]} 39. Qc2 {[%emt 0:01:02]} Rxc5 {[%emt 0:00:41]} 40. Qxc5+ {[%emt 0:00:05]} Kb7 {[%emt 0:00:38]} 41. Qe7+ {[%emt 0:01:30]} Kb8 {[%emt 0:23:02]} 42. Qe8+ {[%emt 0:01:30]} Kc7 {[%emt 0:06:30]} 43. Qxf7+ {[%emt 0:00:30]} Kd8 {[%emt 0:00:00]} 44. Qg8+ {[%emt 0:24:30]} Ke7 {[%emt 0:01:00]} 45. Qh7+ {[%emt 0:00:00]} Kd8 {[%emt 0:00:30]} 46. Qc2 {[%emt 0:01:00]} Qf1+ {[%emt 0:00:30]} 47. Ka2 {[%emt 0:00:30]} Qxf4 {[%emt 0:04:26]} 48. Qc5 {[%emt 0:00:30]} Ke8 {[%emt 0:04:28]} 49. Qxa5 {[%emt 0:02:30]} Qxd4 {[%emt 0:00:06]} 50. Qb5+ {[%emt 0:00:00]} Kd8 {[%emt 0:03:15]} 51. Qb8+ {[%emt 0:00:00]} Ke7 {[%emt 0:00:07]} 52. Qc7+ {[%emt 0:01:30]} Kf8 {[%emt 0:01:57]} 53. a5 {[%emt 0:00:30]} b3+ {[%emt 0:04:00]} 54. Ka3 {[%emt 0:02:30]} Qd1 {[%emt 0:01:41]} 55. Qb8+ {[%emt 0:09:43]} Kf7 {[%emt 0:00:17]} 56. Qxb3 {[%emt 0:00:32]} Qa1+ {[%emt 0:00:05]} 57. Kb4 {[%emt 0:00:04]} Qe1+ {[%emt 0:00:43]} 58. Qc3 {[%emt 0:00:18]} Qe4+ {[%emt 0:00:03]} 59. Kc5 {[%emt 0:00:13]} Ke7 {[%emt 0:00:14]} 60. a6 {[%emt 0:01:23]} Qa4 {[%emt 0:04:17]} 61. Qa3 {[%emt 0:00:35]} 1-0

[Event "German Bundesliga 2023-24"]
[Site "Germany"]
[Date "2024.03.16"]
[Round "12"]
[White "Predojevic, Borki"]
[Black "Bauer, Christian"]
[Result "1/2-1/2"]
[ECO "E05"]
[WhiteElo "2580"]
[BlackElo "2564"]
[Annotator "TA"]
[PlyCount "40"]
[EventDate "2023.10.20"]
[EventType "team-tourn"]
[EventCountry "GER"]
[SourceTitle "playchess.com"]
[Source "ChessBase"]
[SourceQuality "1"]
[TimeControl "40/6000+30:3000+30"]

{[%evp 23,40,4,8,13,16,19,20,7,20,6,38,19,21,18,14,3,4,4,14]} 1. Nf3 {[%emt 0:01:00]} Nf6 {[%emt 0:02:00]} 2. c4 {[%emt 0:00:00]} e6 {[%emt 0:01:30]} 3. g3 {[%emt 0:00:00]} d5 {[%emt 0:00:30]} 4. Bg2 {[%emt 0:00:30]} Be7 {[%emt 0:04:30]} 5. O-O {[%emt 0:03:30]} O-O {[%emt 0:00:30]} 6. d4 {[%emt 0:00:30]} dxc4 {[%emt 0:00:30]} 7. Qc2 {[%emt 0:00:00]} a6 {[%emt 0:01:30]} 8. a4 {[%emt 0:00:00]} Bd7 {[%emt 0:00:30][%cal Bc8d7,Bd7c6,Bc6d5,Bd5e4,Be4h7][%mdl 32]} 9. Qxc4 {[%emt 0:00:30]} Bc6 {[%emt 0:00:00]} 10. Bg5 {[%emt 0:00:00]} Bd5 {[%emt 0:04:00]} 11. Qc2 {[%emt 0:01:00]} Be4 {[%emt 0:02:30]} 12. Qc1 {[%emt 0:04:30]} h6 {[%emt 0:08:30]} 13. Bxf6 {[%emt 0:03:30]} Bxf6 {[%emt 0:00:30]} 14. Nbd2 {[%emt 0:01:30]} Bh7 {[%emt 0:02:30]} 15. Rd1 {[%emt 0:11:30]} Nc6 {[%emt 0:09:30][%cal Bb8c6,Bc6b4,Bb4d3][%mdl 32]} 16. Nb3 {[%emt 0:08:30]} Qd6 {[%emt 0:14:30] Verhindert Ne5} 17. e3 {[%emt 0:21:30]} Nb4 {[%emt 0:06:30] Die Stellung ist ausgeglichen.} 18. Ne1 {[%emt 0:08:30] Pariert Bc2.} Rab8 {[%emt 0:03:30]} 19. Nc5 {[%emt 0:05:30]} b6 {[%emt 0:01:30]} 20. Ncd3 {[%emt 0:00:30]} Nxd3 {[%emt 0:01:30] Nicht viel passiert in dieser Partie.   Gewichteter Fehlerwert: Weiß=0.07 (makellos) /Schwarz=0.05 (makellos) .  Ungenau:       	---       	Schwarz=1     OK:         	Weiß=2     	Schwarz=4     Bester:       	---       	Schwarz=2} 1/2-1/2

[Event "German Bundesliga 2023-24"]
[Site "Germany"]
[Date "2024.03.16"]
[Round "12"]
[White "Kadric, Denis"]
[Black "Motylev, Alexander"]
[Result "1/2-1/2"]
[ECO "B13"]
[WhiteElo "2579"]
[BlackElo "2619"]
[Annotator "TA"]
[PlyCount "40"]
[EventDate "2023.10.20"]
[EventType "team-tourn"]
[EventCountry "GER"]
[SourceTitle "playchess.com"]
[Source "ChessBase"]
[SourceQuality "1"]
[TimeControl "40/6000+30:3000+30"]

{[%evp 14,40,12,0,0,2,0,0,2,3,15,-15,-15,-8,0,-8,0,-12,0,-5,0,-7,0,-6,0,-11,0,-13,0]} 1. e4 {[%emt 0:01:00]} c6 {[%emt 0:01:00]} 2. d4 {[%emt 0:04:30]} d5 {[%emt 0:00:00]} 3. exd5 {[%emt 0:03:30]} cxd5 {[%emt 0:00:00]} 4. Bd3 {[%emt 0:00:30]} Nc6 {[%emt 0:00:30]} 5. c3 {[%emt 0:00:00]} Nf6 {[%emt 0:00:30]} 6. h3 {[%emt 0:00:00]} g6 {[%emt 0:00:30]} 7. Nf3 {[%emt 0:00:30]} Bf5 {[%emt 0:00:30]} 8. O-O {[%emt 0:00:30] The position is equal.} Qc7 {[%emt 0:02:30]} 9. Re1 {[%emt 0:06:30]} Bxd3 {[%emt 0:03:30]} 10. Qxd3 {[%emt 0:00:00]} e6 {[%emt 0:01:30]} 11. a4 {[%emt 0:16:00]} Bg7 {[%emt 0:02:30]} 12. Na3 {[%emt 0:00:30]} O-O {[%emt 0:01:30]} 13. Nb5 {[%emt 0:03:30]} Qb8 {[%emt 0:04:30]} 14. Na3 {[%emt 0:11:30]} Qc7 {[%emt 0:07:30]} 15. Nb5 {[%emt 0:04:30]} Qb8 {[%emt 0:01:30]} 16. Na3 {[%emt 0:00:30]} Qc7 {[%emt 0:00:30]} 17. Nb5 {[%emt 0:00:00]} Qb8 {[%emt 0:00:30]} 18. Na3 {[%emt 0:00:00]} Qc7 {[%emt 0:00:00]} 19. Nb5 {[%emt 0:00:00]} Qb8 {[%emt 0:00:00]} 20. Na3 {[%emt 0:00:00]} Qc7 {[%emt 0:00:30] Not much happened in this game.   Weighted Error Value: White=0.03 (flawless) /Black=0.05 (flawless) .  Inaccurate:     	White=1     	---        OK:         	White=8     	Black=3} 1/2-1/2

[Event "German Bundesliga 2023-24"]
[Site "Germany"]
[Date "2024.03.16"]
[Round "12"]
[White "Cheng, Bobby"]
[Black "Kasimdzhanov, Rustam"]
[Result "1/2-1/2"]
[ECO "D34"]
[WhiteElo "2572"]
[BlackElo "2679"]
[Annotator "TA"]
[PlyCount "66"]
[EventDate "2023.10.20"]
[EventType "team-tourn"]
[EventCountry "GER"]
[SourceTitle "playchess.com"]
[Source "ChessBase"]
[SourceQuality "1"]
[TimeControl "40/6000+30:3000+30"]

{[%evp 23,66,16,26,17,10,20,43,22,39,28,31,20,27,38,48,0,0,0,0,0,0,0,0,0,0,0,0,0,0,-9,0,-13,0,0,0,0,0,0,0,0,0,0,0,0,0]} 1. d4 {[%emt 0:01:00]} d5 {[%emt 0:01:00]} 2. c4 {[%emt 0:00:00]} e6 {[%emt 0:00:00]} 3. Nf3 {[%emt 0:00:00]} c5 {[%emt 0:00:00]} 4. cxd5 {[%emt 0:00:30]} exd5 {[%emt 0:00:00]} 5. g3 {[%emt 0:00:30]} Nf6 {[%emt 0:00:00]} 6. Bg2 {[%emt 0:00:30]} Be7 {[%emt 0:00:30]} 7. O-O {[%emt 0:02:30]} O-O {[%emt 0:00:00]} 8. dxc5 {[%emt 0:00:30]} Bxc5 {[%emt 0:00:00]} 9. Nc3 {[%emt 0:01:30]} Nc6 {[%emt 0:00:30]} 10. Bg5 {[%emt 0:00:30]} d4 {[%emt 0:00:30]} 11. Ne4 {[%emt 0:00:30]} Be7 {[%emt 0:00:30]} 12. Bxf6 {[%emt 0:00:30]} Bxf6 {[%emt 0:00:30] [#]} 13. b4 $1 {[%emt 0:00:00]} a6 {[%emt 0:08:30]} 14. a4 {[%emt 0:01:00]} d3 {[%emt 0:05:30]} (14... Nxb4 {simplifies} 15. Nxf6+ Qxf6 16. Qxd4 Qxd4 17. Nxd4 a5) 15. Nxf6+ {[%emt 0:00:30] White is slightly better.} Qxf6 {[%emt 0:00:30]} 16. Qxd3 {[%emt 0:00:30]} Nxb4 {[%emt 0:00:30]} 17. Qd4 {[%emt 0:03:30]} Qe7 {[%emt 0:07:30][%cal Ob4c2]} (17... Qxd4 {simplifies} 18. Nxd4 a5 19. Rfd1 Rb8) 18. Qb6 {[%emt 0:07:30]} a5 {[%emt 0:04:30]} 19. Nd4 {[%emt 0:09:30]} (19. Qb5 $14 {is more appropriate.}) 19... Ra6 $11 {[%emt 0:13:30] The position is equal.} 20. Qb5 {[%emt 0:00:00]} Rd6 {[%emt 0:03:30]} 21. Nf5 {[%emt 0:29:00]} Bxf5 {[%emt 0:00:30]} 22. Qxf5 {[%emt 0:00:30]} b6 {[%emt 0:00:30]} 23. Rad1 {[%emt 0:04:30]} g6 {[%emt 0:11:30]} 24. Qb5 {[%emt 0:12:30]} Rc8 {[%emt 0:04:30] [#] Threatens to win with ...Rc5.} 25. Rxd6 {[%emt 0:03:30]} Qxd6 {[%emt 0:02:30]} 26. Bf3 {[%emt 0:00:00]} Kg7 {[%emt 0:01:30]} 27. h4 {[%emt 0:02:00]} h5 {[%emt 0:04:30]} 28. Kg2 {[%emt 0:02:30]} Qd4 {[%emt 0:07:30]} (28... Rc5 $5 29. Qe8 $8 Nd5 $11) 29. e3 {[%emt 0:07:30]} Qf6 {[%emt 0:00:30]} 30. Rd1 {[%emt 0:00:30]} Rc5 {[%emt 0:12:30]} 31. Qe8 {[%emt 0:02:39] Rd8 is the strong threat.} Re5 {[%emt 0:06:02]} 32. Qd7 {[%emt 0:08:25]} Nc2 {[%emt 0:05:12]} 33. Qd2 {[%emt 0:02:36]} Rc5 {[%emt 0:00:59] Weighted Error Value: White=0.04 (flawless) /Black=0.03 (flawless) .  Mistake:       	White=1     	---        OK:         	White=13    	Black=9      Best:        	---       	Black=2} 1/2-1/2

[Event "German Bundesliga 2023-24"]
[Site "Germany"]
[Date "2024.03.16"]
[Round "12"]
[White "Stevic, Hrvoje"]
[Black "Laurent-Paoli, Pierre"]
[Result "0-1"]
[ECO "B12"]
[WhiteElo "2549"]
[BlackElo "2540"]
[Annotator "TA"]
[PlyCount "70"]
[EventDate "2023.10.20"]
[EventType "team-tourn"]
[EventCountry "GER"]
[SourceTitle "playchess.com"]
[Source "ChessBase"]
[SourceQuality "1"]
[TimeControl "40/6000+30:3000+30"]

{[%evp 16,70,25,11,31,16,45,12,27,21,27,27,18,21,35,37,53,0,0,0,-7,-55,-36,-56,-10,-4,-14,-57,-55,-56,-9,-111,-43,-456,-452,-547,-570,-640,-528,-641,-538,-656,-642,-579,-466,-995,-644,-605,-591,-1787,-1244,-29986,-29987,-29997,-29998,-29998,-29999]} 1. e4 {[%emt 0:01:00]} c6 {[%emt 0:02:00][%cal Bc7c6,Bc6c5][%mdl 32]} 2. d4 {[%emt 0:00:00]} d5 {[%emt 0:00:30]} 3. e5 {[%emt 0:00:00]} Bf5 {[%emt 0:00:30]} 4. Nf3 {[%emt 0:00:30]} e6 {[%emt 0:00:30]} 5. Be2 {[%emt 0:00:30]} c5 {[%emt 0:01:30]} 6. c3 {[%emt 0:00:30]} Nc6 {[%emt 0:01:30]} 7. O-O {[%emt 0:00:30]} Bg4 {[%emt 0:00:30][%cal Bf5g4,Bg4h5,Bh5g6,Bg6e4][%mdl 32]} 8. Nbd2 {[%emt 0:01:30]} cxd4 {[%emt 0:04:30]} 9. cxd4 {[%emt 0:00:30]} Bh5 {[%emt 0:03:30]} 10. h3 {[%emt 0:01:30]} a5 {[%emt 0:08:30]} 11. Nb1 {[%emt 0:01:30]} Nge7 {[%emt 0:11:30] The position is equal.} 12. g4 {[%emt 0:07:30]} Bg6 {[%emt 0:00:30]} 13. Nc3 {[%emt 0:01:30]} h5 {[%emt 0:05:30]} 14. Bg5 {[%emt 0:09:30]} hxg4 {[%emt 0:05:30]} 15. hxg4 {[%emt 0:02:30]} Qb6 {[%emt 0:01:30]} 16. Na4 {[%emt 0:18:30]} (16. Be3 $1 $14) 16... Qc7 $1 $11 {[%emt 0:01:30]} 17. Rc1 {[%emt 0:04:30]} Be4 {[%emt 0:04:30][%cal Of7f6] aiming for ...f6!} 18. Nh2 {[%emt 0:07:30] [#]} (18. Nc3 $11 {feels stronger.} Qb6 19. Be3 Bxf3 20. Bxf3) 18... f6 $1 $15 {[%emt 0:06:30]} 19. Bf4 {[%emt 0:00:30]} (19. exf6 $2 Qxh2#) (19. f3 Bh7) 19... Ng6 {[%emt 0:01:30]} (19... fxe5 $6 20. Bxe5 Qd8 21. Bb5 $14) (19... g5 $1 $15 20. Bg3 f5) 20. Bg3 $11 {[%emt 0:00:30]} fxe5 $40 {[%emt 0:00:30][%mdl 128] White needs to defend precisely.} 21. Nc3 {[%emt 0:17:30]} Nf4 {[%emt 0:09:30][%cal Rf4h3]} (21... Nxd4 $2 22. Nxe4 Qf7 (22... Qxc1 $2 23. Bb5+ Nxb5 24. Qxc1 $18) 23. Ng5 $18) 22. Nxe4 {[%emt 0:00:30]} dxe4 {[%emt 0:00:30]} 23. Bb5 {[%emt 0:13:30] [#]} (23. Qc2 $11) 23... exd4 {[%emt 0:09:30]} (23... O-O-O $1 $17 24. Bxc6 bxc6) 24. Qe1 $2 {[%emt 0:00:30][%mdl 8192] Loses the game.} (24. Qxd4 $2 Ne2+ 25. Bxe2 Qxg3+ (25... Nxd4 26. Rxc7 Nxe2+ 27. Kg2 $15) 26. fxg3 Nxd4 $17) ({White should try} 24. Re1 $15 Bd6 (24... Qe5 25. Qa4 $16) 25. Rxe4) 24... Qe5 $19 {[%emt 0:03:30] And now ...Nh3+ would win.} 25. Bxc6+ {[%emt 0:03:10]} bxc6 {[%emt 0:00:00]} 26. Rxc6 {[%emt 0:00:00]} Qd5 {[%emt 0:03:00] Strongly threatening ...Nh3+.} (26... Bd6 $2 27. Rxd6 Qxd6 28. Qxe4 $19) 27. Rb6 {[%emt 0:03:09]} g5 {[%emt 0:12:10]} 28. Qd1 {[%emt 0:02:33]} Bc5 {[%emt 0:00:47]} (28... Qxa2 $2 29. Bxf4 d3 30. Be5 $18 (30. Bxg5 Bc5 $16)) 29. Rb5 {[%emt 0:00:29]} Qc4 {[%emt 0:05:16]} 30. Rb7 {[%emt 0:02:36]} (30. Qb3 $142 Qxb3 31. axb3) 30... Bd6 {[%emt 0:04:07]} (30... Qxa2 31. Bxf4 gxf4 32. Qe2 $11) 31. Re1 {[%emt 0:00:54]} d3 {[%emt 0:00:30] Threatens to win with ...Ne2+.} (31... Qxa2 $2 {perishes.} 32. Qxd4 (32. Rxe4 Qc4 $11) 32... e5 33. Qxd6 $18) 32. Re3 {[%emt 0:03:25]} Ne2+ {[%emt 0:01:08]} ({Worse is} 32... Qxa2 33. Rxe4 O-O-O 34. Rb3 $15) 33. Rxe2 {[%emt 0:00:21]} dxe2 {[%emt 0:00:04] Black mates.} 34. Qxd6 {[%emt 0:00:05]} e1=Q+ {[%emt 0:00:07]} 35. Kg2 {[%emt 0:00:00] [#]} Qh1+ $3 {[%emt 0:00:12][%mdl 512] Weighted Error Value: White=0.91/Black=0.81.  Loses game:     	White=1     	---        Mistake:       	White=3     	Black=2      Inaccurate:     	White=3     	Black=3      OK:         	White=7     	Black=5      Best:        	White=2     	Black=3      Strong:       	---       	Black=1      Brilliant:      	---       	Black=1} 0-1

[Event "German Bundesliga 2023-24"]
[Site "Germany"]
[Date "2024.03.16"]
[Round "12"]
[White "Van den Doel, Erik"]
[Black "Markus, Robert"]
[Result "1-0"]
[ECO "B07"]
[WhiteElo "2547"]
[BlackElo "2582"]
[Annotator "TA"]
[PlyCount "152"]
[EventDate "2023.10.20"]
[EventType "team-tourn"]
[EventCountry "GER"]
[SourceTitle "playchess.com"]
[Source "ChessBase"]
[SourceQuality "1"]
[TimeControl "40/6000+30:3000+30"]

{[%evp 70,152,0,-30,-15,-28,-6,0,0,0,0,0,0,0,0,0,0,0,0,0,0,-8,0,0,0,0,22,8,11,8,8,8,33,33,47,40,33,35,49,31,31,31,60,21,124,117,145,66,180,101,159,161,140,0,145,127,174,60,58,0,191,177,408,407,852,852,844,843,714,580,597,552,880,760,654,620,593,558,2158,1129,1018,549,955,889,4133]} 1. d4 {[%emt 0:01:00]} Nf6 {[%emt 0:01:00]} 2. Nf3 {[%emt 0:00:00]} d6 {[%emt 0:00:00]} 3. Nbd2 {[%emt 0:00:00]} Nbd7 {[%emt 0:02:00]} 4. e4 {[%emt 0:01:30]} e5 {[%emt 0:00:00]} 5. c3 {[%emt 0:00:30]} g6 {[%emt 0:03:00]} 6. Bd3 {[%emt 0:02:30]} Bg7 {[%emt 0:00:30]} 7. O-O {[%emt 0:00:30]} O-O {[%emt 0:00:00]} 8. Re1 {[%emt 0:03:30]} Re8 {[%emt 0:01:00]} 9. a4 {[%emt 0:06:30]} a5 {[%emt 0:02:30]} 10. h3 {[%emt 0:18:30]} h6 {[%emt 0:11:30]} 11. Nf1 {[%emt 0:08:30]} Nf8 {[%emt 0:18:30]} 12. Ng3 {[%emt 0:06:30]} N6h7 {[%emt 0:02:30]} 13. Be3 {[%emt 0:06:30]} Ne6 {[%emt 0:00:30]} 14. dxe5 {[%emt 0:02:30]} dxe5 {[%emt 0:02:30]} 15. Bb5 {[%emt 0:00:30]} Rf8 {[%emt 0:05:30]} 16. Qxd8 {[%emt 0:03:30]} Rxd8 {[%emt 0:00:30]} 17. Red1 {[%emt 0:16:30]} Nhf8 {[%emt 0:03:30]} 18. Nf1 {[%emt 0:05:30]} f6 {[%emt 0:12:30]} 19. Bc4 {[%emt 0:04:30]} Rxd1 {[%emt 0:05:30]} 20. Rxd1 {[%emt 0:00:00]} Kf7 {[%emt 0:00:30]} 21. Nh4 {[%emt 0:05:52]} Ke8 {[%emt 0:03:30]} 22. Nd2 {[%emt 0:02:39]} Bd7 {[%emt 0:05:30]} 23. Ra1 {[%emt 0:00:24]} Kd8 {[%emt 0:09:30]} 24. Kf1 {[%emt 0:01:15]} Ng5 {[%emt 0:03:59]} 25. Ke2 {[%emt 0:02:14]} Be6 {[%emt 0:02:32]} 26. Bxe6 {[%emt 0:02:20]} Ngxe6 {[%emt 0:00:06]} 27. g3 {[%emt 0:00:13]} Ke8 {[%emt 0:02:46]} 28. Rf1 {[%emt 0:06:13]} Kf7 {[%emt 0:03:50]} 29. Rd1 {[%emt 0:00:46]} b6 {[%emt 0:03:58]} 30. Nc4 {[%emt 0:01:11]} Ng5 {[%emt 0:01:27]} 31. Bxg5 {[%emt 0:00:47]} hxg5 {[%emt 0:00:06]} 32. Ng2 {[%emt 0:00:04]} Ne6 {[%emt 0:00:38]} 33. h4 {[%emt 0:02:27]} gxh4 {[%emt 0:01:44]} 34. Nxh4 {[%emt 0:00:04]} Rd8 {[%emt 0:01:57]} 35. Rxd8 {[%emt 0:01:24]} Nxd8 {[%emt 0:00:06]} 36. Kd3 {[%emt 0:00:23]} Bf8 {[%emt 0:00:45]} 37. Nd2 {[%emt 0:01:10]} Ne6 {[%emt 0:01:21]} 38. Nb3 $1 {[%emt 0:00:14]} Bc5 {[%emt 0:00:17]} 39. Ke2 {[%emt 0:00:15]} Bd6 {[%emt 0:00:29]} 40. Nf3 {[%emt 0:00:28]} Ke7 {[%emt 0:00:00]} 41. Nfd2 {[%emt 0:15:37]} Kd7 {[%emt 0:03:59]} 42. Nc4 {[%emt 0:01:30]} Bf8 {[%emt 0:05:30]} 43. Ne3 {[%emt 0:07:30]} Bh6 {[%emt 0:05:30]} 44. Nd5 {[%emt 0:01:30]} f5 {[%emt 0:02:30]} 45. f3 {[%emt 0:03:30]} fxe4 {[%emt 0:00:30]} 46. Nf6+ {[%emt 0:01:30]} Kc6 {[%emt 0:01:30]} 47. Nxe4 {[%emt 0:00:00]} Ng7 {[%emt 0:01:30]} 48. Kd3 {[%emt 0:05:18]} Nf5 {[%emt 0:01:30]} 49. Na1 {[%emt 0:00:10]} Bc1 {[%emt 0:01:30]} 50. b3 {[%emt 0:00:18]} Nd6 {[%emt 0:08:30]} 51. Nc2 {[%emt 0:00:52]} Kd5 {[%emt 0:00:30]} 52. Ne1 {[%emt 0:05:27]} Bb2 {[%emt 0:04:30]} 53. Ng2 {[%emt 0:01:24]} Bc1 {[%emt 0:01:30]} 54. Nh4 {[%emt 0:00:34]} g5 $1 {[%emt 0:00:00]} 55. Ng2 {[%emt 0:00:42]} Ke6 {[%emt 0:04:08]} 56. g4 {[%emt 0:06:10]} Nf7 {[%emt 0:04:19]} (56... c6 $11 {remains equal.}) 57. Ne3 $16 {[%emt 0:00:49]} Kd7 {[%emt 0:02:16]} 58. Nd5 {[%emt 0:02:00]} (58. b4 $16) 58... Ba3 {[%emt 0:03:19]} (58... Nd6 $14) 59. Kc4 {[%emt 0:00:36]} (59. b4 $18) 59... Kc6 {[%emt 0:02:02]} (59... c6 $142 60. Ndf6+ (60. Nxb6+ Kc7 $11) 60... Kc7) 60. Ne3 {[%emt 0:02:27]} Bc1 {[%emt 0:00:18]} 61. Kd3 {[%emt 0:01:25]} Kd7 $1 {[%emt 0:01:26]} 62. Nc4 {[%emt 0:00:15]} Kc6 {[%emt 0:00:41]} (62... Nd8 $16 63. Nxe5+ Ke6) 63. Nf2 {[%emt 0:00:28]} ({Better is} 63. Nf6 $18) 63... Kd5 $14 {[%emt 0:00:36]} 64. Ne4 {[%emt 0:00:59]} (64. Kc2 $14 Bf4 65. Kd3) 64... Kc6 $1 $18 {[%emt 0:00:16] [#]} 65. Nf6 $1 {[%emt 0:00:30]} Kc5 $2 {[%emt 0:02:25]} (65... b5 {was necessary.}) 66. Ke4 $18 {[%emt 0:00:39]} Kc6 {[%emt 0:03:52]} (66... Bf4 $142 67. Kf5 Kc6) 67. Nxe5+ $18 {[%emt 0:01:28]} Nxe5 {[%emt 0:00:00]} 68. Kxe5 {[%emt 0:00:55]} b5 {[%emt 0:00:12]} 69. axb5+ {[%emt 0:00:15]} Kxb5 {[%emt 0:00:06]} 70. Nd5 {[%emt 0:00:02]} c6 {[%emt 0:00:29]} 71. Nc7+ {[%emt 0:00:05]} Kb6 {[%emt 0:00:19]} 72. Ne6 {[%emt 0:00:05]} Kb5 {[%emt 0:01:07]} 73. Kd4 {[%emt 0:01:11]} Bd2 {[%emt 0:00:54]} 74. Kd3 {[%emt 0:00:24]} Bc1 {[%emt 0:00:07]} 75. Nd4+ {[%emt 0:00:15]} Kc5 {[%emt 0:00:19]} 76. b4+ {[%emt 0:00:30]} Kd5 {[%emt 0:00:30]} 1-0